{"text_format":"1","workbook":"xlsx","n_sheets":6,"sheets":["S_CND","Rapport MT","Rapport PT","Rapport UT","PV Visuel","std CND Applicable"],"not_rendered":{"charts":0,"images":155,"macros":1,"external_links":0,"defined_names":23,"comments":0,"pivot_tables":0},"unopened":[],"bounds":{"document_bytes":16777216,"sheet_cells":100000,"rows_first":2000,"rows_last":500,"rows_between":2000,"halvings":0,"cell_chars":16384,"cell_head_chars":4096},"cells_cut":0,"cells_raw":0,"read":"whole","date_system":"1900"}

{"sheet":"S_CND","index":0,"n_rows":195,"n_cols":11,"rows_kept":195,"cut":false,"hidden":false,"merged":[]}
["Projet","Désignation","Matière","N°PLAN ","Code Article","CND","CTRL initiaux","Fréquentiel","N°Série","N°OF","PV_CND"]
["AZ8A","Chassis","P355NL1","PSO-12-00048215",162139,"UT",1,1,123,"VSM","OK"]
["SBB_H4 ","Chassis","P355NL2","PSO-12-00048216",162139,"MT",1,1]
["HANOÏ","Longeron Gauche","P355NL1","PSO-12-00048215",162139,"UT",1,1]
["AZ4A","Longeron Gauche","P355NL1","PSO-12-00048215",162139,"MT",1,1]
["CISALPINO","Longeron Droit","P355NL1","PSO-12-00048215",162139,"UT",1,1]
["DUBAI","Longeron Droit","P355NL1","PSO-12-00048215",162139,"MT",1,1]
["BARCELONE ","Trav_Ext_Non_Chargée (AR)","P355NL1","PSO-12-00048215",162823,"UT",1,1]
["IXEGE","Trav_Ext_Non_Chargée (AR)","P355NL1","PSO-12-00048215",162823,"MT",1,1]
["LOCO MAROC","Trav_Ext_Chargée (AV)","P355NL1","PSO-12-00048215",162824,"UT",1,1]
["MADHEPURA","Trav_Ext_Chargée (AV)","P355NL1","PSO-12-00048215",162824,"MT",1,1]
["SINGAPOUR","traverse_centrale","P355NL1","PSO-12-00046452",162142,"UT",1,1]
["MP_14","traverse_centrale","P355NL1","PSO-12-00046452",162142,"MT",1,1,123,"VSM","OK"]
["MPl_16","reducteur","EN GJS 400 18 LT","-",157821,"UT",1,1]
["NTV_NEW","reducteur","EN GJS 400 18 LT","-",157821,"MT",1,1]
["PRASA_GIBELA","SBB_H4_chassis_V2","P355NL1 et S500","PSO-12-00080059",221942,"UT","0.25",0.25]
["REGIOLIS","SBB_H4_chassis_V2","P355NL1 et S500","PSO-12-00080059",221942,"MT","0.25",0.25]
["SNCB_M7","SBB_H4_Trav_Ext","P355NL1 et S500","PSO-12-00080059",201817,"UT",{"$f":"1/10","v":0.1},0.1]
["RGV2N2","SBB_H4_Trav_Ext","P355NL1 et S500","PSO-12-00080059",201817,"MT",0.1,0.1]
["RER_NG","SBB_H4_Tube","P355NL1 et S500","PSO-12-00080059",203898,"UT",0.1,0.1]
[null,"SBB_H4_Tube","P355NL1 et S500","PSO-12-00080059",203898,"MT",0.1,0.1]
[null,"SBB_H4_traverse_centrale_optimisee","P355NL1 et S500","PSO-12-00074938",212182,"UT",0.1,0.1]
[null,"SBB_H4_traverse_centrale_optimisee","P355NL1 et S500","PSO-12-00074938",212182,"MT",0.1,0.1]
[null,"HANOÏ_Chassis","P275NL1","PSO-12-00076668",214891,"UT",{"$f":"1/4","v":0.25},0.25]
[null,"HANOÏ_Chassis","P275NL1","PSO-12-00076668",214891,"MT",0.25,0.25]
[null,"HANOÏ_Longeron Gauche","P275NL1","PSO-12-00076668",214891,"UT",0.25,0.25]
[null,"HANOÏ_Longeron Gauche","P275NL1","PSO-12-00076668",214891,"MT",0.25,0.25]
[null,"HANOÏ_Longeron Droit","P275NL1","PSO-12-00076668",214891,"UT",0.25,0.25]
[null,"HANOÏ_Longeron Droit","P275NL1","PSO-12-00076668",214891,"MT",0.25,0.25]
[null,"HANOÏ_Traverse","P275NL1","PSO-12-00076668",216929,"UT",0.25,0.25]
[null,"HANOÏ_Traverse","P275NL1","PSO-12-00076668",216929,"MT",0.25,0.25]
[null,"HANOÏ_Tube","P275NL1","PSO-12-00076668",216930,"UT",0.25,0.25]
[null,"HANOÏ_Tube","P275NL1","PSO-12-00076668",216930,"MT",0.25,0.25]
[null,"AZ4A_Chassis","P355NL1","PSO-12-00052093",161779,"UT","0.25",0.25]
[null,"AZ4A_Chassis","P355NL1","PSO-12-00052093",161779,"MT","0.25",0.25]
[null,"AZ4A_Traverse_Extreme","P355NL1","PSO-12-00052093",166008,"UT","0.25",0.25]
[null,"AZ4A_Traverse_Extreme","P355NL1","PSO-12-00052093",166008,"MT","0.25",0.25]
[null,"AZ4A_Traverse_Centrale","P355NL1","PSO-12-00052093",169947,"UT","0.25",0.25]
[null,"AZ4A_Traverse_Centrale","P355NL1","PSO-12-00052093",169947,"MT","0.25",0.25]
[null,"AZ4A_bati_de_reducteur","P355NL1","PSO-13-00071061",201325,"UT","0.25",0.25]
[null,"AZ4A_bati_de_reducteur","P355NL1","PSO-13-00071061",201325,"MT","0.25",0.25]
[null,"CISALPINO_chassis_1cis_chum","S355J2G3","PSO-12-00053139",151284,"UT"]
[null,"CISALPINO_chassis_1cis_chum","S355J2G3","PSO-12-00053139",151284,"MT"]
[null,"CISALPINO_chassis_2_3cis_chpm","S355J2G3","PSO-12-00048248",151287,"UT"]
[null,"CISALPINO_chassis_2_3cis_chpm","S355J2G3","PSO-12-00048248",151287,"MT"]
[null,"CISALPINO_chassis_4cis_chpp","S355J2G3","PSO-12-00053147",151285,"UT"]
[null,"CISALPINO_chassis_4cis_chpp","S355J2G3","PSO-12-00053147",151285,"MT"]
[null,"CISALPINO_chassis_5cis_chup","S355J2G3","PSO-12-00053149",159389,"UT"]
[null,"CISALPINO_chassis_5cis_chup","S355J2G3","PSO-12-00053149",159389,"MT"]
[null,"CISALPINO_chassis_1ti_chvm","S355J2G3","PSO-12-00053152",151288,"UT"]
[null,"CISALPINO_chassis_1ti_chvm","S355J2G4","PSO-12-00053153",151288,"MT"]
[null,"CISALPINO_chassis_2_3ti_chwm","S355J2G3","PSO-12-00053152",151289,"UT"]
[null,"CISALPINO_chassis_2_3ti_chwm","S355J2G3","PSO-12-00053152",151289,"MT"]
[null,"DUBAÏ_moteur_Chassis","S355J2G3","PSO-12-00072656",204991,"UT",{"$f":"1/10","v":0.1},0.1]
[null,"DUBAÏ_moteur_Chassis","S355J2G3","PSO-12-00072656",204991,"MT",0.1,0.1]
[null,"DUBAÏ_moteur_Traverse","S355J2G3","PSO-12-00072656",207360,"UT",0.1,0.1]
[null,"DUBAÏ_moteur_Traverse","S355J2G3","PSO-12-00072656",207360,"MT",0.1,0.1]
[null,"DUBAÏ_porteur_Chassis","S355J2G3","PSO-12-00072269",205372,"UT",0.1,0.1]
[null,"DUBAÏ_porteur_Chassis","S355J2G3","PSO-12-00072269",205372,"MT",0.1,0.1]
[null,"DUBAÏ_porteur_Traverse","S355J2G3","PSO-12-00072269",207605,"UT",0.1,0.1]
[null,"DUBAÏ_porteur_Traverse","S355J2G3","PSO-12-00072269",207605,"MT",0.1,0.1]
[null,"BARCELONE_Chassis","P275NL1","PSO-12-00020994",217023,"UT",{"$f":"1/4","v":0.25},0.25]
[null,"BARCELONE_Chassis","P275NL1","PSO-12-00020994",217023,"MT",0.25,0.25]
[null,"BARCELONE_Traverse","P275NL1","PSO-12-00020994",218275,"UT",0.25,0.25]
[null,"BARCELONE_Traverse","P275NL1","PSO-12-00020994",218275,"MT",0.25,0.25]
[null,"BARCELONE_Tube","P275NL1","PSO-12-00020994",218276,"UT",0.25,0.25]
[null,"BARCELONE_Tube","P275NL1","PSO-12-00020994",218276,"MT",0.25,0.25]
[null,"IXEGE_Chassis","P355NL1","PSO-12-00049958",161713,"UT",{"$f":"1/12","v":8.3333333333333329E-2},{"$f":"#REF!","v":{"$error":"#REF!"}}]
[null,"IXEGE_Chassis","P355NL1","PSO-12-00049958",161713,"MT",{"$f":"1/12","v":8.3333333333333329E-2},{"$f":"#REF!","v":{"$error":"#REF!"}}]
[null,"LOCO_MAROC_Chassis","P275NL1","PSO-12-00035833",129228,"UT",{"$f":"1/4","v":0.25},0.25]
[null,"LOCO_MAROC_Chassis","P275NL1","PSO-12-00035833",129228,"MT",0.25,0.25]
[null,"LOCO_Longeron Gauche","P275NL1","PSO-12-00035833",129228,"UT",0.25,0.25]
[null,"LOCO_Longeron Gauche","P275NL2","PSO-12-00035834",129228,"MT",0.25,0.25]
[null,"LOCO_Longeron Droit","P275NL1","PSO-12-00035833",129228,"UT",0.25,0.25]
[null,"LOCO_Longeron Droit","P275NL2","PSO-12-00035834",129228,"MT",0.25,0.25]
[null,"LOCO_MAROC_Trav_Ext","P275NL1","PSO-12-00035833",129240,"UT",0.25,0.25]
[null,"LOCO_MAROC_Trav_Ext","P275NL1","PSO-12-00035833",129240,"MT",0.25,0.25]
[null,"LOCO_MAROC_Trav_Centrale","P275NL1","PSO-12-00035833",129241,"UT",0.25,0.25]
[null,"LOCO_MAROC_Trav_Centrale","P275NL1","PSO-12-00035833",129241,"MT",0.25,0.25]
[null,"MADHEPURA_Chassis","P355NL1","PSO-12-00069714",199412,"UT",{"$f":"1/10","v":0.1},{"$f":"1/10","v":0.1}]
[null,"MADHEPURA_Chassis","P355NL1","PSO-12-00069714",199412,"MT",{"$f":"1/4","v":0.25},{"$f":"1/4","v":0.25}]
[null,"MADHEPURA_Trav_AV","P355NL1","PSO-12-00069714",203909,"UT",{"$f":"1/10","v":0.1},{"$f":"1/10","v":0.1}]
[null,"MADHEPURA_Trav_AV","P355NL2","PSO-12-00069715",203909,"MT",{"$f":"1/4","v":0.25},{"$f":"1/4","v":0.25}]
[null,"MADHEPURA_Trav_AR","P355NL1","PSO-12-00069714",203910,"UT",{"$f":"1/10","v":0.1},{"$f":"1/10","v":0.1}]
[null,"MADHEPURA_Trav_AR","P355NL1","PSO-12-00069714",203910,"MT",{"$f":"1/4","v":0.25},{"$f":"1/4","v":0.25}]
[null,"MADHEPURA_Trav_Centrale","P355NL1","PSO-12-00069714",203917,"UT",{"$f":"1/10","v":0.1},{"$f":"1/10","v":0.1}]
[null,"MADHEPURA_Trav_Centrale","P355NL1","PSO-12-00069714",203917,"MT",{"$f":"1/4","v":0.25},{"$f":"1/4","v":0.25}]
[null,"SINGAPOUR_moteur_chassis","P275NL1","PSO-12-00080603",219873,"UT"]
[null,"SINGAPOUR_moteur_chassis","P275NL1","PSO-12-00080603",219873,"MT"]
[null,"SINGAPOUR_moteur_Longeron Gauche","P275NL1","PSO-12-00080603",219873,"UT"]
[null,"SINGAPOUR_moteur_Longeron Gauche","P275NL1","PSO-12-00080603",219873,"MT"]
[null,"SINGAPOUR_moteur_Longeron Droit","P275NL1","PSO-12-00080603",219873,"UT"]
[null,"SINGAPOUR_moteur_Longeron Droit","P275NL1","PSO-12-00080603",219873,"MT"]
[null,"SINGAPOUR_moteur_traverse","P275NL1","PSO-12-00080603",219879,"UT"]
[null,"SINGAPOUR_moteur_traverse","P275NL1","PSO-12-00080603",219879,"MT"]
[null,"SINGAPOUR_porteur_chassis","P275NL1","PSO-12-00080237",220180,"UT"]
[null,"SINGAPOUR_porteur_chassis","P275NL1","PSO-12-00080237",220180,"MT"]
[null,"SINGAPOUR_porteur_Longeron Gauche","P275NL1","PSO-12-00080237",220180,"UT"]
[null,"SINGAPOUR_porteur_Longeron Gauche","P275NL1","PSO-12-00080237",220180,"MT"]
[null,"SINGAPOUR_porteur_Longeron Droit","P275NL1","PSO-12-00080237",220180,"UT"]
[null,"SINGAPOUR_porteur_Longeron Droit","P275NL1","PSO-12-00080237",220180,"MT"]
[null,"SINGAPOUR_porteur_traverse","P275NL1","PSO-12-00080237",220182,"UT"]
[null,"SINGAPOUR_porteur_traverse","P275NL1","PSO-12-00080237",220182,"MT"]
[null,"MP_14_New_longeron","P355NL1","PSO-12-00078715",218776,"UT"]
[null,"MP_14_New_longeron","P355NL1","PSO-12-00078715",218776,"MT"]
[null,"MPL_16_New_longeron","P355NL1","PSO-12-00071692",218786,"UT"]
[null,"MPL_16_New_longeron","P355NL1","PSO-12-00071692",218786,"MT"]
[null,"NTV_NEW_DESIGN_chassis_cmin","P355NL1","PSO-12-00076430",215594,"UT"]
[null,"NTV_NEW_DESIGN_chassis_cmin","P355NL1","PSO-12-00076430",215594,"MT"]
[null,"NTV_NEW_DESIGN_Trav_cmin","P355NL1","PSO-12-00076430",215722,"UT"]
[null,"NTV_NEW_DESIGN_Trav_cmin","P355NL1","PSO-12-00076430",215722,"MT"]
[null,"NTV_NEW_DESIGN_chassis_cmex","P355NL1","PSO-12-00075994",215591,"UT"]
[null,"NTV_NEW_DESIGN_chassis_cmex","P355NL1","PSO-12-00075994",215591,"MT"]
[null,"NTV_NEW_DESIGN_Trav_cmex","P355NL1","PSO-12-00075994",215703,"UT"]
[null,"NTV_NEW_DESIGN_Trav_cmex","P355NL1","PSO-12-00075994",215703,"MT"]
[null,"PRASA_GIBELA_chassis_moteur","P355NL1","PSO-12-00066565",199878,"UT"]
[null,"PRASA_GIBELA_chassis_moteur","P355NL1","PSO-12-00066565",199878,"MT"]
[null,"PRASA_GIBELA_Trav_moteur","P355NL1","PSO-12-00066565",178825,"UT"]
[null,"PRASA_GIBELA_Trav_moteur","P355NL1","PSO-12-00066565",178825,"MT"]
[null,"PRASA_GIBELA_chassis_porteur","P355NL1","PSO-12-00066568",199883,"UT"]
[null,"PRASA_GIBELA_chassis_porteur","P355NL1","PSO-12-00066568",199883,"MT"]
[null,"PRASA_GIBELA_Trav_porteur","P355NL1","PSO-12-00066568",179155,"UT"]
[null,"PRASA_GIBELA_Trav_porteur","P355NL1","PSO-12-00066568",179155,"MT"]
[null,"REGIOLIS_classique_V2_chassis","P355NL1","PSO-12-00045671",210069,"UT"]
[null,"REGIOLIS_classique_V2_chassis","P355NL1","PSO-12-00045671",210069,"MT"]
[null,"REGIOLIS_classique_V2_Longeron Gauche","P355NL1","PSO-12-00045671",210069,"UT"]
[null,"REGIOLIS_classique_V2_Longeron Gauche","P355NL1","PSO-12-00045671",210069,"MT"]
[null,"REGIOLIS_classique_V2_Longeron Droit","P355NL1","PSO-12-00045671",210069,"UT"]
[null,"REGIOLIS_classique_V2_Longeron Droit","P355NL1","PSO-12-00045671",210069,"MT"]
[null,"REGIOLIS_classique_V2_Trav","P355NL1","PSO-12-00045671",151040,"UT"]
[null,"REGIOLIS_classique_V2_Trav","P355NL1","PSO-12-00045671",151040,"MT"]
[null,"REGIOLIS_jakob_chassis","P355NL1","PSO-12-00045660",149294,"UT"]
[null,"REGIOLIS_jakob_chassis","P355NL1","PSO-12-00045660",149294,"MT"]
[null,"REGIOLIS_jakob_Longeron Gauche","P355NL1","PSO-12-00045660",149294,"UT"]
[null,"REGIOLIS_jakob_Longeron Gauche","P355NL1","PSO-12-00045660",149294,"MT"]
[null,"REGIOLIS_jakob_Longeron Droit","P355NL1","PSO-12-00045660",149294,"UT"]
[null,"REGIOLIS_jakob_Longeron Droit","P355NL1","PSO-12-00045660",149294,"MT"]
[null,"REGIOLIS_jakob_Trav","P355NL1","PSO-12-00045660",150930,"UT"]
[null,"REGIOLIS_jakob_Trav","P355NL1","PSO-12-00045660",150930,"MT"]
[null,"RER_NG_moteur_chassis","P355NL1","PSO-12-00074806",206611,"UT"]
[null,"RER_NG_moteur_chassis","P355NL1","PSO-12-00074806",206611,"MT"]
[null,"RER_NG_moteur_Longeron Gauche","P355NL1","PSO-12-00074806",206611,"UT"]
[null,"RER_NG_moteur_Longeron Gauche","P355NL1","PSO-12-00074806",206611,"MT"]
[null,"RER_NG_moteur_Longeron Droit","P355NL1","PSO-12-00074806",206611,"UT"]
[null,"RER_NG_moteur_Longeron Droit","P355NL1","PSO-12-00074806",206611,"MT"]
[null,"RER_NG_moteur_Trav","P355NL1","PSO-12-00074806",213494,"UT"]
[null,"RER_NG_moteur_Trav","P355NL1","PSO-12-00074806",213494,"MT"]
[null,"RER_NG_porteur_chassis","P355NL1","PSO-12-00075871",206622,"UT"]
[null,"RER_NG_porteur_chassis","P355NL1","PSO-12-00075871",206622,"MT"]
[null,"RER_NG_porteur_Longeron Gauche","P355NL1","PSO-12-00075871",206622,"UT"]
[null,"RER_NG_porteur_Longeron Gauche","P355NL1","PSO-12-00075871",206622,"MT"]
[null,"RER_NG_porteur_Longeron Droit","P355NL1","PSO-12-00075871",206622,"UT"]
[null,"RER_NG_porteur_Longeron Droit","P355NL1","PSO-12-00075871",206622,"MT"]
[null,"RER_NG_porteur_Trav","P355NL1","PSO-12-00075871",214649,"UT"]
[null,"RER_NG_porteur_Trav","P355NL1","PSO-12-00075871",214649,"MT"]
[null,"RGV2N2_chin_chassis","P355NL1","PSO-12-00039721",138570,"UT"]
[null,"RGV2N2_chin_chassis","P355NL1","PSO-12-00039721",138570,"MT"]
[null,"RGV2N2_chin_Tube_Frein","P355NL1","PSO-12-00039721",137615,"UT"]
[null,"RGV2N2_chin_Tube_Frein","P355NL1","PSO-12-00039721",137615,"MT"]
[null,"RGV2N2_chin_Petit_Lg","P355NL1","PSO-12-00039721",141484,"UT"]
[null,"RGV2N2_chin_Petit_Lg","P355NL1","PSO-12-00039721",141484,"MT"]
[null,"RGV2N2_chin_Ext_Lg","P355NL1","PSO-12-00039721",141492,"UT"]
[null,"RGV2N2_chin_Ext_Lg","P355NL1","PSO-12-00039721",141492,"MT"]
[null,"RGV2N2_chex_chassis","P355NL1","PSO-12-00033802",137612,"UT"]
[null,"RGV2N2_chex_chassis","P355NL1","PSO-12-00033802",137612,"MT"]
[null,"RGV2N2_chex_Tube_Frein","P355NL1","PSO-12-00033802",137615,"UT"]
[null,"RGV2N2_chex_Tube_Frein","P355NL1","PSO-12-00033802",137615,"MT"]
[null,"RGV2N2_chex_Petit_Lg","P355NL1","PSO-12-00033802",137614,"UT"]
[null,"RGV2N2_chex_Petit_Lg","P355NL1","PSO-12-00033802",137614,"MT"]
[null,"RGV2N2_chex_Ext_Lg","P355NL1","PSO-12-00033802",137625,"UT"]
[null,"RGV2N2_chex_Ext_Lg","P355NL1","PSO-12-00033802",137625,"MT"]
[null,"RGV2N2_bmav_chassis","P355NL1","PSO-12-00033892",138573,"UT"]
[null,"RGV2N2_bmav_chassis","P355NL1","PSO-12-00033892",138573,"MT"]
[null,"RGV2N2_bmar_chassis","P355NL1","PSO-12-00033948",138910,"UT"]
[null,"RGV2N2_bmar_chassis","P355NL1","PSO-12-00033948",138910,"MT"]
[null,"RGV2N2_bmar_Trav_Pivot","P355NL1","PSO-12-00033948",141659,"UT"]
[null,"RGV2N2_bmar_Trav_Pivot","P355NL1","PSO-12-00033948",141659,"MT"]
[null,"RGV2N2_bmar_Butee","P355NL1","PSO-12-00033948",141660,"UT"]
[null,"RGV2N2_bmar_Butee","P355NL1","PSO-12-00033948",141660,"MT"]
[null,"RGV2N2_bmar_Ext_Lg","P355NL1","PSO-12-00033948",156148,"UT"]
[null,"RGV2N2_bmar_Ext_Lg","P355NL1","PSO-12-00033948",156148,"MT"]
[null,"RGV2N2_chasse_pierre_rep_101","P355NL1","PBE-22-00013770",128122,"UT"]
[null,"RGV2N2_chasse_pierre_rep_102","P355NL1","PBE-22-00013770",128122,"MT"]
[null,"RGV2N2_chasse_pierre_rep_102","P355NL1","PBE-22-00013770",128125,"UT"]
[null,"RGV2N2_chasse_pierre_rep_103","P355NL1","PBE-22-00013770",128125,"MT"]
[null,"SNCB_M7_chassis","P355NL1","PSO-12-00080059",195365,"UT",{"$f":"1/10","v":0.1},0.1]
[null,"SNCB_M7_chassis","P355NL1","PSO-12-00080059",195365,"MT",{"$f":"1/4","v":0.25},0.25]
[null,"SNCB_M7_Longeron Gauche","P355NL1","PSO-12-00080059",195365,"UT",{"$f":"1/10","v":0.1},0.1]
[null,"SNCB_M7_Longeron Gauche","P355NL1","PSO-12-00080059",195365,"MT",0.1,0.1]
[null,"SNCB_M7_Longeron Droit","P355NL1","PSO-12-00080059",195365,"UT",0.1,0.1]
[null,"SNCB_M7_Longeron Droit","P355NL1","PSO-12-00080059",195365,"MT",0.1,0.1]
[null,"SNCB_M7_traverse","P355NL1","PSO-12-00080059",195366,"UT",0.1,0.1]
[null,"SNCB_M7_traverse","P355NL1","PSO-12-00080059",195366,"MT",0.1,0.1]
[null,"SNCB_M7_traverse_de_charge","P355NL1","PSO-12-00069972",202774,"UT",0.1,0.1]
[null,"SNCB_M7_traverse_de_charge","P355NL1","PSO-12-00069972",202774,"MT",0.1,0.1]

{"sheet":"Rapport MT","index":1,"n_rows":31,"n_cols":15,"rows_kept":31,"cut":false,"hidden":false,"merged":[[2,7,2,9],[11,0,12,0],[11,4,11,5],[11,13,11,15],[9,3,9,6],[9,9,9,10],[9,12,9,15],[7,2,7,15],[8,2,8,15],[10,3,10,5],[3,4,3,6],[2,4,2,6],[2,13,2,15],[3,12,3,15],[3,1,3,3],[2,1,2,3],[3,10,3,11],[2,10,2,12],[3,7,3,9],[6,3,6,5],[6,11,6,15],[5,0,5,1],[4,12,4,15],[4,8,4,9],[0,0,0,3],[0,4,0,9],[1,4,1,6],[1,13,1,15],[0,13,0,15],[1,1,1,3],[0,10,0,12],[1,10,1,12],[1,7,1,9],[5,2,5,15],[4,10,4,11],[4,1,4,3],[4,4,4,7],[14,0,16,0],[14,4,14,5],[14,13,14,15],[15,4,15,5],[15,11,15,12],[15,14,15,15],[16,4,16,5],[13,13,13,15],[18,14,18,15],[18,11,18,13],[18,6,18,10],[27,12,27,13],[27,14,27,15],[29,9,29,10],[28,1,28,15],[26,11,26,15],[26,1,26,3],[26,4,26,6],[26,8,26,9],[27,7,27,9],[29,13,29,14],[23,11,23,15],[24,10,24,11],[24,12,24,13],[24,14,24,15],[19,13,19,15],[20,13,20,15],[21,8,21,9],[21,13,21,15],[22,8,22,15],[19,8,19,9],[20,8,20,9],[17,11,17,13],[16,11,16,12],[17,14,17,15],[13,4,13,5],[17,6,17,10],[17,1,17,4],[10,7,10,8],[14,6,14,9],[16,6,16,9],[15,6,15,9],[13,7,13,8],[12,7,12,8],[11,7,11,8],[12,4,12,5],[12,14,12,15],[30,9,30,10],[19,0,22,0],[24,0,24,1],[25,0,25,1],[18,1,18,4],[25,2,25,4],[25,5,25,8],[23,4,23,6],[24,4,24,8],[22,1,22,3],[22,4,22,5],[23,1,23,3],[23,8,23,9],[25,9,25,10],[21,1,21,3],[21,4,21,5],[19,1,19,3],[19,4,19,5],[20,1,20,3],[20,4,20,5],[29,1,29,4]]}
["Etablissement du Creusot",null,null,null,"Examen par magnétoscopie\nMagnetic particle examination",null,null,null,null,null,"ID Procès verbal\nTest report ID",null,null,{"$f":"H2 & \"_\" & B3","v":"BARCELONE_Traverse_"}]
["Projet\nProject","BARCELONE ",null,null,"Désignation\nDesignation",null,null,"BARCELONE_Traverse",null,null,"Code article\nArticle code",null,null,218275]
["N° de série\nSerial number",null,null,null,"N° Plan\nDrawing number",null,null,"PSO-12-00020994",null,null,"Spécification\nSpecification"]
["Matière\nMaterial","P275NL1",null,null,"N° coulée\nHeat n°",null,null,null,null,null,"Fournisseur\nSupplier n°",null,"LCR"]
["N° OF\nProduction order number",null,null,null,"Fiche instruction\nDirective sheet",null,null,null,null,null,"Avis qualité\nQuality advice"]
["Stade et étendue du contrôle\nStage and extent of inspection"]
["Type\nType",null,null,"Mobile\nPortable",null,null,null,null,"Fixe\nStationary"]
["Marque\nTrade mark"]
["Référence\nReference"]
["Méthode de magnétisation\nMagnetizing method",null,null,"Par électro-aimant\nBy yoke",null,null,null,null,null,"Par champ\nBy field",null,null,"Par passage de courant\nBy passing current"]
["Nature du courant\nPower supply nature",null,null,"Alternatif\nA.C",null,null,null,"Redressé\nRectified",null,null,"Pulsé\nPulse",null,null,"Continu\nD.C"]
["Etat de surface\nSurface condition",null,null,null,"Grenaillé\nShotted",null,null,"Sablé\nSanded",null,null,null,"Brut \nRough"]
[null,null,null,null,"Meulé\nGround",null,null,"Usine\nMachined",null,null,null,"Poli\nPolished",null,"Rugosité\nRoughness"]
["Nettoyage\nCleaning","Oui\nYes",null,null,"Non\nNo",null,null,"Acétone\nAcetone",null,null,null,"Soufflé\nBlown"]
["Nettoyage préalable\nPreliminary cleaning",null,null,null,null,null,"Produits utilisés\nProducts used"]
[null,"Oui\nYes",null,null,"Non\nNo",null,"Mode de séchage\nDrying method",null,null,null,null,"Evaporation naturelle\nNatural evaporation"]
[null,null,null,null,null,null,"Temps de séchage\nDrying time",null,null,null,null,null,null,"Minutes"]
["Intensité mesurée\nActual amperage",null,null,null,null,"Ampères","Valeur du champ",null,null,null,null,null,null,null,"A/m"]
["Durée de l'aimantation\nMagnetizing duration",null,null,null,null,"Secondes","Laque de contraste"]
["Révélateur\nDeveloper","Particules\nParticules",null,null,null,null,null,null,"Humides\nWet",null,null,"Sèches\nDry",null,"Fluorescentes\nFluorescent"]
[null,"Couleur\nColor",null,null,null,null,null,null,"Noire\nBlack",null,null,"Grise\nGrey",null,"Jaune\nYellow"]
[null,null,null,null,null,null,null,null,"Bleu\nBlue",null,null,"Fluorescentes\nFluorescent"]
[null,"Marque\nTrade mark"]
["Séquence d'examen\nExamination sequences",null,null,null,"1 Direction\n1 Direction",null,null,null,null,null,null,"2 Directions perpendiculaires\n2 Perpendicular directions"]
["Surface examinée en une seule fois\nAera examined at a time",null,null,null,"………. X ……………  mm",null,null,null,null,null,"Pas\nPath center distance",null,null,null,"mm"]
["Croquis montrant le recouvrement\nSketch showing testing coverage",null,null,null,null,null,null,null,null,"Oui\nYes",null,"Non\nNo"]
["Démagnétisation\nDemagnetizing",null,null,null,"Oui\nYes",null,null,null,"Non\nNo"]
["Eclairage utilisé\nLighting used","Lumière\nLight",null,null,null,"Naturelle\nNatural",null,"Artificielle\nArtificial",null,null,"Noire\nBlack","Eclairement\nLighting",null,null,"Lux / W/cm²"]
["Résultat du contrôle\nExamination result"]
["Date du contrôle\nExamination date",null,null,null,null,null,null,null,null,"Conforme\nAccepted",null,null,null,"Non conforme\nRefused"]
["Signature/Tampon/N° carte contrôleur\nSignature/Stamp/N° of control card",null,null,null,null,null,null,null,null,"Signature/\nTampon/N° carte contrôleur\nSignature/Stamp/N° of control card"]

{"sheet":"Rapport PT","index":2,"n_rows":30,"n_cols":14,"rows_kept":30,"cut":false,"hidden":false,"merged":[[0,0,0,3],[0,4,0,8],[0,9,0,10],[0,11,0,14],[1,1,1,3],[1,4,1,6],[1,7,1,8],[1,9,1,10],[1,11,1,14],[3,1,3,3],[3,4,3,6],[3,7,3,8],[3,9,3,10],[3,11,3,14],[2,1,2,3],[2,4,2,6],[2,7,2,8],[2,9,2,10],[2,11,2,14],[4,4,4,6],[4,7,4,8],[4,9,4,10],[4,11,4,14],[5,0,5,1],[5,2,5,14],[4,1,4,3],[8,0,9,0],[8,4,8,5],[8,10,8,14],[9,3,9,8],[9,12,9,14],[6,0,7,0],[6,4,6,5],[6,12,6,14],[7,3,7,8],[7,12,7,14],[12,0,13,0],[12,4,12,5],[12,12,12,14],[13,4,13,5],[13,13,13,14],[10,0,11,0],[10,4,10,5],[10,10,10,14],[11,3,11,8],[11,12,11,14],[18,13,18,14],[19,1,19,3],[19,4,19,5],[19,6,19,7],[14,4,14,5],[15,4,15,5],[15,7,15,8],[15,12,15,14],[16,4,16,5],[16,7,16,8],[16,10,16,11],[16,13,16,14],[17,4,17,5],[17,7,17,8],[17,10,17,11],[18,0,19,0],[18,1,18,3],[18,4,18,5],[15,0,17,0],[22,9,22,10],[20,0,22,0],[20,1,20,3],[20,4,20,5],[20,7,20,8],[21,1,21,3],[21,4,21,5],[21,7,21,8],[21,10,21,11],[23,0,25,0],[23,1,23,3],[23,4,23,5],[23,12,23,14],[24,1,24,3],[24,4,24,5],[24,7,24,8],[24,12,24,14],[25,1,25,3],[25,4,25,5],[26,11,26,12],[26,13,26,14],[27,1,27,14],[29,7,29,9],[21,13,21,14],[22,1,22,3],[22,4,22,5],[22,6,22,8],[25,6,25,9],[28,1,28,3]]}
["Etablissement du Creusot",null,null,null,"Examen par ressuage\nLiquid penetrant examination",null,null,null,null,"ID Procès verbal\nTest report ID",null,{"$f":"H2 & \"_\" & B3","v":"DUBAÏ_porteur_"}]
["Projet\nProject","DUBAÏ",null,null,"Désignation\nDesignation",null,null,"DUBAÏ_porteur",null,"Code article\nArticle code"]
["N° de série\nSerial number",null,null,null,"N° de Plan\nPlan number",null,null,null,null,"Spécification\nSpecification",null,{"$f":"'std CND Applicable'!B2","v":"FC98002_REv1"}]
["Matière\nMaterial",null,null,null,"N° coulée\nHeat n°",null,null,null,null,"Fournisseur\nSupplier n°",null,"LCR"]
["N° OF\nProduction order N°",null,null,null,"Fiche instruction\nDirective sheet",null,null,null,null,"Avis qualité\nQuality advice"]
["Stade et étendue du contrôle\nStage and extent of inspection"]
["Pénétrant\nPenetrant","Type\nType",null,null,"Coloré\nColored",null,null,"Fluorescent\nFluorescent",null,null,"Préémulsionné\nPrée-emulsified"]
[null,"Marque\nTrade mark",null,null,null,null,null,null,null,null,"Référence\nReference"]
["Produit de lavage\nCleaning agent","Nature\nNature",null,null,"Eau\nWater",null,null,"Solvant\nSolvent"]
[null,"Marque\nTrade mark",null,null,null,null,null,null,null,null,"Référence\nReference"]
["Révélateur\nDeveloper","Type\nType",null,null,"Liquide\nLiquid",null,null,"Poudre\nPowder"]
[null,"Marque\nTrade mark",null,null,null,null,null,null,null,null,"Référence\nReference"]
["Etat de surface\nSurface condition",null,null,null,"Brut\nRough",null,null,"Sablé\nSanded",null,null,"Brossé\nBrushed"]
[null,null,null,null,"Meulé\nGround",null,null,"Usine\nMachined",null,null,"Poli\nPolished",null,"Rugosité\nRoughness"]
["Température de la pièce\nPart temperature",null,null,null,"De 10° à 35°",null,null,null,null,null,"De 36° à 60°"]
["Nettoyage préalable\nPreliminary cleaning",null,null,null,null,null,null,"Produits utilisés\nProducts used"]
[null,"Oui\nYes",null,null,"Non\nNo",null,null,"Mode de séchage\nDrying method",null,null,"Evaporation naturelle\nNatural evaporation"]
[null,null,null,null,null,null,null,"Temps de séchage\nDrying time",null,null,null,null,"Minutes"]
["Application du pénétrant\nPenetrant application","Mode d'application\nApplication method",null,null,null,null,null,"Pinceau\nBrush",null,null,"Pulvérisation\nPulverization"]
[null,"Durée d'application\nApplication time",null,null,null,null,null,null,"Minutes"]
["Elimination de l'excès de pénétrant\nPenetrant exces application","Méthode\nMethod",null,null,null,null,null,"Lavage à l'eau\nWater washing",null,null,"Emulsif\nEmulsifier",null,"Solvant\nSolvent"]
[null,"Mode de séchage\nDrying method",null,null,null,null,null,"Evaporation Naturelle\nNatural evaporation",null,null,"Courant d'air chaud\nHot air blast",null,null,"Chiffons secs\nDry rags"]
[null,"Temps de séchage\nDrying time",null,null,null,null,null,null,null,"Minutes"]
["Application du révélateur\nDeveloper application","Méthode\nMethod",null,null,null,null,null,"Pinceau\nBrush",null,null,"Pulvérisation\nPulverization"]
[null,"Mode de séchage\nDrying method",null,null,null,null,null,"Evaporation Naturelle\nNatural evaporation"]
[null,"Durée de ressuage\nPenetration duration",null,null,null,null,null,null,null,null,"Minutes"]
["Eclairage utilisé\nLighting used","Lumière\nLight",null,null,null,"Naturelle\nNatural",null,"Artificielle\nArtificial",null,"Noire\nBlack","Eclairement\nLighting",null,null,"Lux / W/cm²"]
["Résultat du contrôle\nExamination result"]
["Date du contrôle\nExamination date",null,null,null,null,null,null,"Conforme\nAccepted",null,null,"Non conforme\nRefused"]
["Signature/Tampon/N° carte contrôleur\nSignature/Stamp/N° of control card",null,null,null,null,null,null,"Signature/Tampon/N° carte contrôleur\nSignature/Stamp/N° of control card"]

{"sheet":"Rapport UT","index":3,"n_rows":32,"n_cols":18,"rows_kept":32,"cut":false,"hidden":false,"merged":[[0,0,0,6],[0,7,0,13],[0,14,0,16],[1,0,1,3],[1,4,1,6],[4,0,4,4],[4,5,4,6],[1,14,1,16],[2,0,2,3],[2,4,2,6],[4,7,4,11],[4,12,4,13],[4,14,4,16],[5,0,5,6],[1,7,1,11],[2,7,2,11],[2,12,2,13],[2,14,2,16],[3,0,3,3],[3,4,3,6],[3,7,3,11],[3,12,3,13],[3,14,3,16],[1,12,1,13],[6,0,6,2],[8,7,8,9],[8,10,8,11],[8,12,8,13],[8,14,8,16],[9,4,9,6],[9,7,9,9],[9,10,9,11],[9,12,9,13],[6,7,6,8],[6,14,6,16],[6,9,6,12],[6,3,6,6],[11,12,11,13],[11,14,11,16],[7,0,13,1],[7,2,7,3],[7,4,7,6],[7,7,7,9],[7,10,7,11],[7,12,7,13],[7,14,7,16],[8,4,8,6],[17,0,18,4],[17,6,17,8],[17,10,17,12],[17,14,17,15],[18,6,18,8],[18,10,18,12],[18,14,18,18],[14,0,14,11],[14,12,14,18],[15,0,16,4],[15,6,15,8],[15,10,15,12],[15,14,15,15],[16,6,16,8],[16,10,16,12],[16,14,16,15],[17,17,17,18],[16,17,16,18],[15,17,15,18],[19,0,20,4],[19,6,19,8],[19,10,19,12],[19,14,19,16],[21,0,21,18],[22,0,22,1],[22,2,22,4],[22,5,22,7],[22,8,22,11],[22,12,22,14],[20,17,20,18],[19,17,19,18],[27,2,27,4],[27,5,27,7],[27,8,27,11],[27,12,27,14],[27,15,27,18],[31,0,31,3],[31,12,31,13],[28,2,28,4],[28,5,28,7],[28,8,28,11],[28,12,28,14],[28,15,28,18],[29,0,29,4],[29,5,29,18],[30,17,30,18],[30,0,30,4],[30,5,30,6],[1,17,1,18],[0,17,0,18],[5,7,5,18],[26,2,26,4],[26,5,26,7],[26,8,26,11],[26,12,26,14],[26,15,26,18],[24,15,24,18],[25,2,25,4],[25,5,25,7],[25,8,25,11],[25,12,25,14],[25,15,25,18],[22,15,22,18],[23,2,23,4],[23,5,23,7],[23,8,23,11],[23,12,23,14],[23,15,23,18],[24,2,24,4],[24,5,24,7],[24,8,24,11],[24,12,24,14],[8,17,13,18],[7,17,7,18],[4,17,4,18],[3,17,3,18],[2,17,2,18],[12,4,12,6],[12,7,12,9],[12,10,12,11],[12,12,12,13],[12,14,12,16],[13,4,13,6],[13,7,13,9],[13,10,13,11],[13,12,13,13],[13,14,13,16],[9,14,9,16],[10,4,10,6],[10,7,10,9],[10,10,10,11],[10,12,10,13],[10,14,10,16],[11,4,11,6],[11,7,11,9],[11,10,11,11]]}
["Etablissement du Creusot",null,null,null,null,null,null,"Examen par ultrasons\nUltrasonic inspection",null,null,null,null,null,null,"ID Procès verbal\nTest report ID",null,null,{"$f":"M2 & \"_\" & E3","v":"MP_14_New_longeron_"}]
["Projet\nProject",null,null,null,"MP_14",null,null,"Désignation\nDesignation",null,null,null,null,"MP_14_New_longeron",null,"Code article\nArticle code",null,null,218776]
["N° de série\nSerial number",null,null,null,null,null,null,"N° de Plan\nPlan number\n",null,null,null,null,"PSO-12-00078715",null,"Spécification \nSpecification",null,null,{"$f":"'std CND Applicable'!B3","v":"FC97014rev6"}]
["Matière\nMaterial",null,null,null,"P355NL1",null,null,"N° coulée\nHeat n°",null,null,null,null,null,null,"Fournisseur\nSupplier n°",null,null,"LCR"]
["N° OF\nProduction order n°",null,null,null,null,null,null,"Fiche d'instruction\nDirective sheet",null,null,null,null,null,null,"Avis qualité\nQuality advice"]
["Stade et étendue du contrôle\nStage and extent of inspection"]
["Appareil\nEquipment",null,null,null,null,null,null,"Marque\nTrade mark",null,null,null,null,null,"Type\nType",null,null,null,"N° de série\nSerial number"]
["Traducteurs\nProbes",null,"Ondes\nWaves",null,"Marque\nTrade mark",null,null,"Référence\nReference",null,null,"Angle\nAngle",null,"Fréquence/diamètre\nFrequency/diametre",null,"Dimensions (mm)\nDimensions (mm)",null,null,"Cale étalonnage\nWedge calibration"]
[null,null,"L*","T*",null,null,null,null,null,null,null,null,null,null,null,null,null,"Trou percé latéralement\nTrou percé fond plat\nDiamètre du trou\nEpaisseur de la cale"]
[null,null,null,null,null,null,null,null,null,null,"0°",null,"4 MHZ",null,"3.5 x 10"]
[null,null,null,null,null,null,null,null,null,null,"45°",null,"5 MHZ",null,"8 x 9"]
[null,null,null,null,null,null,null,null,null,null,"60°",null,"6 MHZ",null,"8 x 9"]
[null,null,null,null,null,null,null,null,null,null,"70°",null,"7 MHZ",null,"8 x 9"]
[null,null,null,null,null,null,null,"/",null,null,"/",null,"/",null,"/"]
["L* : Longitudinale - Longitudinal",null,null,null,null,null,null,null,null,null,null,null,"T* : Transversale - Transversal"]
["Etat de surface\nSurface condition",null,null,null,null,null,"Grenailé\nShotted",null,null,null,"Sablé\nSanded",null,null,null,"Brut\nRough",null,null,"Brossé\nBrushed"]
[null,null,null,null,null,null,"Meulé\nGround",null,null,null,"Usiné\nMachined",null,null,null,"Poli\nPolished",null,null,"Rugosité\nRoughness"]
["Milieu de couplage\nCoupling",null,null,null,null,null,"Nature\nNature",null,null,null,"Savon\nSoap",null,null,null,"Gel\nContact paste",null,null,"Huile\nOil"]
[null,null,null,null,null,null,"Référence\nReference",null,null,null,"NOV"]
["Sens de couplage\nOrientation",null,null,null,null,null,"Sur pièce\nOn part",null,null,null,"Sur la périphérie\nOn the periphery",null,null,null,"En bout\nOn end",null,null,"Sur soudure\nOn weld"]
[]
["Etalonnage de l'appareil - Equipment calibration"]
["Ondes\nWaves",null,"Traducteur\nProbe",null,null,"Base de temps (mm)\nTime base (mm)",null,null,"Traduceteur\nProbe",null,null,null,"Dimensions (mm)\nDimensions (mm)",null,null,"Cale étalonnage\nWedge calibration"]
["L*","T*"]
[]
[]
[]
[]
[]
["Résultat du contrôle\nExamination result"]
["Date du contrôle\nExamination date",null,null,null,null,null,null,null,null,null,null,null,"Conforme\nAccepted",null,null,null,null,"Non conforme\nRefused"]
["Signature /Tampon/N° carte contrôleur\nSignature/Stamp/N° of control card",null,null,null,null,null,null,null,null,null,null,null,"Signature/Tampon/N° carte contrôleur\nSignature/Stamp/N° of control card"]

{"sheet":"PV Visuel","index":4,"n_rows":28,"n_cols":15,"rows_kept":28,"cut":false,"hidden":false,"merged":[[7,7,7,10],[8,11,8,15],[9,0,9,15],[11,0,11,15],[13,0,13,15],[8,1,8,7],[7,3,7,5],[7,11,7,15],[12,1,12,7],[10,1,10,7],[5,0,5,1],[5,2,5,15],[4,12,4,15],[0,0,0,3],[0,4,0,9],[0,10,0,12],[0,13,0,15],[1,1,1,3],[1,4,1,6],[1,7,1,9],[1,10,1,12],[1,13,1,15],[4,1,4,3],[4,4,4,7],[4,8,4,9],[4,10,4,11],[2,1,2,3],[2,4,2,6],[2,7,2,9],[2,10,2,12],[3,1,3,3],[3,4,3,6],[3,7,3,9],[3,10,3,11],[3,12,3,15],[2,13,2,15],[26,1,26,4],[26,9,26,10],[26,13,26,14],[27,9,27,10],[6,3,6,5],[6,11,6,15],[14,11,14,15],[12,11,12,15],[10,11,10,15],[19,12,19,15],[6,7,6,8],[22,11,22,15],[21,11,21,15],[15,0,15,15],[18,0,18,15],[20,0,20,15],[24,1,24,15],[25,1,25,15],[17,1,17,7],[16,1,16,7],[14,1,14,7],[23,7,23,9],[23,12,23,13],[23,14,23,15],[17,11,17,15],[16,11,16,15],[22,1,22,7],[21,1,21,7],[19,1,19,7]]}
["Etablissement du Creusot",null,null,null,"Examen visuel\nVisual examination",null,null,null,null,null,"ID Procès verbal\nTest report ID",null,null,{"$f":"H2 & \"_\" & B3","v":"_"}]
["Projet\nProject","AZ4A",null,null,"Désignation\nDesignation",null,null,null,null,null,"Code article\nArticle code"]
["N° de série\nSerial number",null,null,null,"N° Plan\nDrawing number",null,null,null,null,null,"Spécification\nSpecification",null,null,{"$f":"'std CND Applicable'!B4","v":"FC 18 001 rev 1"}]
["Matière\nMaterial",null,null,null,"N° coulée\nHeat n°",null,null,null,null,null,"Fournisseur\nSupplier n°",null,"LCR"]
["N° OF\nProduction order number",null,null,null,"Fiche instruction\nDirective sheet",null,null,null,null,null,"Avis qualité\nQuality advice"]
["Stade et étendue du contrôle\nStage and extent of inspection"]
["Etat de surface\nSurface condition",null,null,"Grenaillé\nShotted",null,null,null,"Brut \nRough"]
["Outillage\nTools",null,null,"Tréteaux\nTrestle",null,null,null,"Outillage spécifique\nSpecific tools"]
[null,"Actions de contrôle",null,null,null,null,null,null,"C","NC","NA","Commentaires / N° Constat de Défaut"]
["Soudure chassis suivant FC 18001"]
["Présence et conformité des soudures","Contrôler suivant plan 100% cordons accessibles + ZAT"]
["Refusion TIG suivant FC 18001"]
["Vérification refusion TIG ","Contrôler suivant plan 100% cordons correspondants"]
["Platinage"]
["Présence du platinage","Vérifier la présence des rails, bossage, autres éléments d'habillage"]
["Visuel hors-soudure"]
["Absence de projections sur faces non ré-usinées (interface de montage)","Vérifier absence de projections sur faces non ré-usinées"]
["Absence d'entaille, coups de meule, point de fusion (chaude de retrait)","Vérifier absence de ces défauts."]
["Contrôle supplémentaire"]
["Points de vigilance","Vérifier les contrôles renforcés",null,null,null,null,null,null,null,null,null,"Document applicable"]
["Documentation"]
["C1N","Vérifier la présence et la validation de chaque étape amont du C1N"]
["Traçabilité","Fiche de traçabilité complétée conforme avec la pièce + Marquage suffisamment marquée"]
["Eclairage utilisé\nLighting used","Lumière\nLight",null,null,null,"Naturelle\nNatural",null,"Artificielle\nArtificial",null,null,"Noire\nBlack","Eclairement\nLighting",null,null,"Lux / W/cm²"]
["Commentaires\nComments"]
["Résultat du contrôle\nExamination result"]
["Date du contrôle\nExamination date",null,null,null,null,null,null,null,null,"Conforme\nAccepted",null,null,null,"Non conforme\nRefused"]
["Signature/Tampon/N° carte contrôleur\nSignature/Stamp/N° of control card",null,null,null,null,null,null,null,null,"Signature/\nTampon/N° carte contrôleur\nSignature/Stamp/N° of control card"]

{"sheet":"std CND Applicable","index":5,"n_rows":4,"n_cols":6,"rows_kept":4,"cut":false,"hidden":false,"merged":[]}
["Spécification MT -->","FC 98 001 rév.4","Modifié par :","Anais ULICZNY","Le :","2019-07-23"]
["Spécification PT -->","FC98002_REv1","Modifié par :","Anais ULICZNY","Le :","2019-07-23"]
["Spécification UT -->","FC97014rev6","Modifié par :","Anais ULICZNY","Le :","2019-07-23"]
["Spécification Visuel -->","FC 18 001 rev 1","Modifié par :","Anais ULICZNY","Le :","2019-07-25"]